[Event "Early-Titled-Tuesday-Blitz-April-23-2024"]
[Site "Chess.com"]
[Date "2024.04.23"]
[Round "2"]
[White "cthulhuuu"]
[Black "lluiss"]
[Result "1-0"]
[WhiteElo "2479"]
[BlackElo "2134"]
[TimeControl "180+1"]
[EndTime "8:13:07 PDT"]
[Termination "cthulhuuu won by resignation"]

1. e4 {[%clk 0:02:59.2]} 1... c5 {[%clk 0:02:59.1]} 2. Nf3 {[%clk 0:02:59.3]}
2... d6 {[%clk 0:02:59.1]} 3. g3 {[%clk 0:02:59.4]} 3... e5 {[%clk 0:02:53.4]}
4. Bg2 {[%clk 0:02:59.2]} 4... Nc6 {[%clk 0:02:52.9]} 5. O-O {[%clk 0:02:59.5]}
5... g6 {[%clk 0:02:53.2]} 6. d3 {[%clk 0:03:00.2]} 6... Bg7 {[%clk 0:02:53.3]}
7. Nc3 {[%clk 0:03:01.1]} 7... Nge7 {[%clk 0:02:52.3]} 8. Nd2 {[%clk 0:03:01.6]}
8... O-O {[%clk 0:02:45.5]} 9. Nc4 {[%clk 0:03:02.1]} 9... Be6 {[%clk
0:02:33.6]} 10. Nd5 {[%clk 0:03:02.3]} 10... Qd7 {[%clk 0:02:21.4]} 11. a4
{[%clk 0:03:00.2]} 11... Rab8 {[%clk 0:02:13.2]} 12. c3 {[%clk 0:03:00]} 12...
b6 {[%clk 0:02:12.1]} 13. Qb3 {[%clk 0:02:47.8]} 13... Bh3 {[%clk 0:02:10]} 14.
Bxh3 {[%clk 0:02:46.5]} 14... Qxh3 {[%clk 0:02:08.9]} 15. Nxd6 {[%clk
0:02:46.9]} 15... Kh8 {[%clk 0:01:51.5]} 16. Nxe7 {[%clk 0:02:43.7]} 16... Nxe7
{[%clk 0:01:50.8]} 17. Nxf7+ {[%clk 0:02:44]} 17... Rxf7 {[%clk 0:01:44.9]} 18.
Qxf7 {[%clk 0:02:44.9]} 18... Rf8 {[%clk 0:01:42.9]} 19. Qxe7 {[%clk 0:02:42.4]}
1-0

[Event "Early-Titled-Tuesday-Blitz-April-23-2024"]
[Site "Chess.com"]
[Date "2024.04.23"]
[Round "2"]
[White "Itay121"]
[Black "dontcatchmeifyoucant"]
[Result "0-1"]
[WhiteElo "2531"]
[BlackElo "2342"]
[TimeControl "180+1"]
[EndTime "8:13:30 PDT"]
[Termination "dontcatchmeifyoucant won by resignation"]

1. e4 {[%clk 0:03:00.9]} 1... c5 {[%clk 0:02:55.8]} 2. c3 {[%clk 0:02:59.4]}
2... Nf6 {[%clk 0:02:53.8]} 3. e5 {[%clk 0:02:59.2]} 3... Nd5 {[%clk 0:02:54.5]}
4. d4 {[%clk 0:02:59.7]} 4... cxd4 {[%clk 0:02:55]} 5. cxd4 {[%clk 0:03:00.6]}
5... e6 {[%clk 0:02:54.6]} 6. Nc3 {[%clk 0:03:00.4]} 6... Nxc3 {[%clk
0:02:52.9]} 7. bxc3 {[%clk 0:03:01.3]} 7... d6 {[%clk 0:02:53.6]} 8. Nf3 {[%clk
0:03:00.5]} 8... Nd7 {[%clk 0:02:49.9]} 9. exd6 {[%clk 0:02:53.3]} 9... Bxd6
{[%clk 0:02:49.9]} 10. Bd3 {[%clk 0:02:53.8]} 10... Qc7 {[%clk 0:02:48.2]} 11.
O-O {[%clk 0:02:45.2]} 11... O-O {[%clk 0:02:40]} 12. Qc2 {[%clk 0:02:36.4]}
12... h6 {[%clk 0:02:38.7]} 13. Re1 {[%clk 0:02:35.7]} 13... b6 {[%clk
0:02:26.5]} 14. Rb1 {[%clk 0:02:27.5]} 14... Bb7 {[%clk 0:02:24.5]} 15. Bh7+
{[%clk 0:02:23.4]} 15... Kh8 {[%clk 0:02:23.9]} 16. Be4 {[%clk 0:02:24.3]} 16...
Rac8 {[%clk 0:02:22.9]} 17. Bxb7 {[%clk 0:02:23.5]} 17... Qxb7 {[%clk
0:02:23.2]} 18. Re4 {[%clk 0:02:22.7]} 18... Rxc3 {[%clk 0:02:14.9]} 19. Qxc3
{[%clk 0:02:16.7]} 19... Qxe4 {[%clk 0:02:15.1]} 20. Be3 {[%clk 0:02:07.4]}
20... Qxb1+ {[%clk 0:02:14.3]} 21. Ne1 {[%clk 0:02:07.5]} 21... Bb4 {[%clk
0:02:13.3]} 22. Bd2 {[%clk 0:02:00.9]} 22... Bxc3 {[%clk 0:02:13]} 23. Bxc3
{[%clk 0:02:01.8]} 23... Nf6 {[%clk 0:02:13]} 24. f3 {[%clk 0:01:57.5]} 24...
Nd5 {[%clk 0:02:12.9]} 0-1

[Event "Early-Titled-Tuesday-Blitz-April-23-2024"]
[Site "Chess.com"]
[Date "2024.04.23"]
[Round "2"]
[White "duone"]
[Black "BashirovKemal"]
[Result "1-0"]
[WhiteElo "2432"]
[BlackElo "2736"]
[TimeControl "180+1"]
[EndTime "8:13:34 PDT"]
[Termination "duone won by resignation"]

1. e4 {[%clk 0:03:00.9]} 1... c5 {[%clk 0:02:59.9]} 2. Nf3 {[%clk 0:02:59.3]}
2... d6 {[%clk 0:03:00.3]} 3. d4 {[%clk 0:02:57.6]} 3... cxd4 {[%clk 0:03:01.2]}
4. Nxd4 {[%clk 0:02:57.9]} 4... Nf6 {[%clk 0:03:01.8]} 5. Nc3 {[%clk 0:02:58]}
5... a6 {[%clk 0:03:02.5]} 6. h3 {[%clk 0:02:57.9]} 6... e5 {[%clk 0:03:01.8]}
7. Nf3 {[%clk 0:02:57]} 7... Be7 {[%clk 0:02:57.2]} 8. g4 {[%clk 0:02:55.7]}
8... h6 {[%clk 0:02:57.3]} 9. Rg1 {[%clk 0:02:52.8]} 9... Nc6 {[%clk 0:02:54.9]}
10. Be3 {[%clk 0:02:52.7]} 10... Be6 {[%clk 0:02:47.4]} 11. g5 {[%clk
0:02:51.4]} 11... hxg5 {[%clk 0:02:45.2]} 12. Nxg5 {[%clk 0:02:52.3]} 12... Bd7
{[%clk 0:02:42.6]} 13. Bc4 {[%clk 0:02:51.9]} 13... O-O {[%clk 0:02:30.2]} 14.
h4 {[%clk 0:02:37.2]} 14... b5 {[%clk 0:02:28.7]} 15. Bb3 {[%clk 0:02:35.3]}
15... b4 {[%clk 0:02:26.4]} 16. Nd5 {[%clk 0:02:35.2]} 16... Na5 {[%clk
0:02:20.5]} 17. Nxf6+ {[%clk 0:02:16.8]} 17... Bxf6 {[%clk 0:02:20.8]} 18. Qh5
{[%clk 0:02:16.8]} 18... Bxg5 {[%clk 0:02:11.6]} 19. hxg5 {[%clk 0:02:17.1]}
19... Nxb3 {[%clk 0:01:34.9]} 20. Rh1 {[%clk 0:02:16.2]} 1-0

[Event "Early-Titled-Tuesday-Blitz-April-23-2024"]
[Site "Chess.com"]
[Date "2024.04.23"]
[Round "2"]
[White "rasmussvane"]
[Black "NovozhilovSemen"]
[Result "1-0"]
[WhiteElo "2974"]
[BlackElo "2638"]
[TimeControl "180+1"]
[EndTime "8:14:01 PDT"]
[Termination "rasmussvane won by resignation"]

1. Nf3 {[%clk 0:03:00.9]} 1... Nf6 {[%clk 0:02:59.2]} 2. g3 {[%clk 0:03:00.3]}
2... d5 {[%clk 0:02:59.2]} 3. Bg2 {[%clk 0:03:00.5]} 3... c6 {[%clk 0:02:59.6]}
4. O-O {[%clk 0:03:00.8]} 4... Bg4 {[%clk 0:02:59.8]} 5. h3 {[%clk 0:03:00.8]}
5... Bh5 {[%clk 0:02:59.7]} 6. d4 {[%clk 0:02:59.4]} 6... Nbd7 {[%clk
0:02:59.3]} 7. c4 {[%clk 0:02:59.8]} 7... e6 {[%clk 0:02:59.5]} 8. cxd5 {[%clk
0:03:00.2]} 8... cxd5 {[%clk 0:02:58.7]} 9. Qb3 {[%clk 0:02:59.5]} 9... Qb6
{[%clk 0:02:57.5]} 10. Nc3 {[%clk 0:02:58.4]} 10... Bd6 {[%clk 0:02:57.6]} 11.
e4 {[%clk 0:02:51.8]} 11... Nxe4 {[%clk 0:02:07.7]} 12. Nxe4 {[%clk 0:02:50.8]}
12... dxe4 {[%clk 0:02:08.6]} 13. Ng5 {[%clk 0:02:46.4]} 13... O-O {[%clk
0:02:07.9]} 14. Nxe4 {[%clk 0:02:46.1]} 14... Bb4 {[%clk 0:02:07.1]} 15. Be3
{[%clk 0:02:43]} 15... a5 {[%clk 0:02:01.5]} 16. d5 {[%clk 0:02:31.2]} 16... Qa6
{[%clk 0:02:01.4]} 17. a3 {[%clk 0:02:21.7]} 17... Be7 {[%clk 0:01:59.1]} 18. d6
{[%clk 0:02:18.1]} 18... Bxd6 {[%clk 0:01:52.5]} 19. g4 {[%clk 0:02:16.2]} 19...
Bg6 {[%clk 0:01:46.8]} 20. Nxd6 {[%clk 0:02:15.5]} 20... Qxd6 {[%clk 0:01:46.6]}
21. Rfd1 {[%clk 0:02:15.6]} 21... Qe7 {[%clk 0:01:35]} 22. Qxb7 {[%clk
0:02:14.7]} 22... Rfd8 {[%clk 0:01:31]} 23. Rxd7 {[%clk 0:02:11.2]} 1-0

[Event "Early-Titled-Tuesday-Blitz-April-23-2024"]
[Site "Chess.com"]
[Date "2024.04.23"]
[Round "2"]
[White "JiaHaoxiang"]
[Black "Kiborg95"]
[Result "0-1"]
[WhiteElo "2577"]
[BlackElo "2846"]
[TimeControl "180+1"]
[EndTime "8:14:32 PDT"]
[Termination "Kiborg95 won by resignation"]

1. d4 {[%clk 0:03:00.9]} 1... d6 {[%clk 0:03:00.2]} 2. Nf3 {[%clk 0:02:58.6]}
2... Nf6 {[%clk 0:03:00.4]} 3. g3 {[%clk 0:02:51.2]} 3... Nbd7 {[%clk
0:02:57.3]} 4. Bg2 {[%clk 0:02:45.5]} 4... e5 {[%clk 0:02:57.9]} 5. O-O {[%clk
0:02:41.4]} 5... e4 {[%clk 0:02:58.1]} 6. Ne1 {[%clk 0:02:41.7]} 6... d5 {[%clk
0:02:58.6]} 7. c4 {[%clk 0:02:40.4]} 7... c6 {[%clk 0:02:59]} 8. Nc3 {[%clk
0:02:40.1]} 8... Bb4 {[%clk 0:02:59.2]} 9. Nc2 {[%clk 0:02:39]} 9... Bxc3 {[%clk
0:02:58.7]} 10. bxc3 {[%clk 0:02:39.8]} 10... dxc4 {[%clk 0:02:52.6]} 11. a4
{[%clk 0:02:38]} 11... O-O {[%clk 0:02:35.4]} 12. Ne3 {[%clk 0:02:37.4]} 12...
Nb6 {[%clk 0:02:34.1]} 13. Qc2 {[%clk 0:02:33.2]} 13... a5 {[%clk 0:02:16.3]}
14. Ba3 {[%clk 0:02:28.9]} 14... Re8 {[%clk 0:02:16.5]} 15. Rab1 {[%clk
0:02:28.6]} 15... Be6 {[%clk 0:02:08.1]} 16. Bc5 {[%clk 0:02:27.9]} 16... Nfd7
{[%clk 0:02:08.1]} 17. Bxe4 {[%clk 0:02:26.8]} 17... Nxc5 {[%clk 0:01:53]} 18.
Bxh7+ {[%clk 0:02:23.2]} 18... Kh8 {[%clk 0:01:52.8]} 19. dxc5 {[%clk
0:02:21.8]} 19... Nd7 {[%clk 0:01:53.5]} 20. Bf5 {[%clk 0:02:15.9]} 20... Nxc5
{[%clk 0:01:48.4]} 21. Bxe6 {[%clk 0:02:15.8]} 21... Rxe6 {[%clk 0:01:49.3]} 22.
Nxc4 {[%clk 0:02:15.9]} 22... Qf6 {[%clk 0:01:43.7]} 23. Rfd1 {[%clk 0:02:09.2]}
23... Ne4 {[%clk 0:01:41.9]} 24. Rd4 {[%clk 0:01:48.9]} 24... Qxf2+ {[%clk
0:01:38.4]} 25. Kh1 {[%clk 0:01:49.3]} 25... Rh6 {[%clk 0:01:35]} 0-1

[Event "Early-Titled-Tuesday-Blitz-April-23-2024"]
[Site "Chess.com"]
[Date "2024.04.23"]
[Round "2"]
[White "Khromkin"]
[Black "TangerineandLemon25"]
[Result "0-1"]
[WhiteElo "2367"]
[BlackElo "2623"]
[TimeControl "180+1"]
[EndTime "8:15:08 PDT"]
[Termination "TangerineandLemon25 won on time"]

1. d4 {[%clk 0:03:00.9]} 1... d5 {[%clk 0:02:58.8]} 2. c4 {[%clk 0:03:01.7]}
2... e6 {[%clk 0:02:59.1]} 3. Nc3 {[%clk 0:03:02.3]} 3... a6 {[%clk 0:02:59.4]}
4. cxd5 {[%clk 0:03:01]} 4... exd5 {[%clk 0:03:00.3]} 5. Qc2 {[%clk 0:03:01.3]}
5... h6 {[%clk 0:02:59.9]} 6. Nf3 {[%clk 0:03:01.8]} 6... Nf6 {[%clk 0:03:00.4]}
7. Bf4 {[%clk 0:03:02.3]} 7... Bd6 {[%clk 0:03:00.9]} 8. Be5 {[%clk 0:03:01.7]}
8... c6 {[%clk 0:03:00.4]} 9. e3 {[%clk 0:03:01.7]} 9... O-O {[%clk 0:02:59.8]}
10. Bd3 {[%clk 0:03:01.7]} 10... Qe7 {[%clk 0:02:58.9]} 11. O-O-O {[%clk
0:03:01.6]} 11... Bxe5 {[%clk 0:02:55.7]} 12. Nxe5 {[%clk 0:03:01.1]} 12... c5
{[%clk 0:02:56.2]} 13. f4 {[%clk 0:03:00.4]} 13... c4 {[%clk 0:02:55.3]} 14. Bf5
{[%clk 0:02:54.6]} 14... b5 {[%clk 0:02:53.7]} 15. g4 {[%clk 0:02:53.4]} 15...
b4 {[%clk 0:02:53.8]} 16. Na4 {[%clk 0:02:52.9]} 16... Bxf5 {[%clk 0:02:54.1]}
17. gxf5 {[%clk 0:02:42.9]} 17... Nbd7 {[%clk 0:02:49.3]} 18. Rhg1 {[%clk
0:02:40.5]} 18... Ne4 {[%clk 0:02:46.9]} 19. Nxd7 {[%clk 0:02:34.3]} 19... Qxd7
{[%clk 0:02:46]} 20. Nc5 {[%clk 0:02:34.8]} 20... Qxf5 {[%clk 0:02:42.4]} 21.
Nxe4 {[%clk 0:02:33]} 21... dxe4 {[%clk 0:02:42.7]} 22. Kb1 {[%clk 0:02:28.6]}
22... Rac8 {[%clk 0:02:40.8]} 23. Rd2 {[%clk 0:02:24.4]} 23... c3 {[%clk
0:02:39.4]} 24. Rdg2 {[%clk 0:02:23.7]} 24... g6 {[%clk 0:02:38.5]} 25. b3
{[%clk 0:02:22.5]} 25... a5 {[%clk 0:02:37.2]} 0-1

[Event "Early-Titled-Tuesday-Blitz-April-23-2024"]
[Site "Chess.com"]
[Date "2024.04.23"]
[Round "2"]
[White "Louis-Paulsen-Fan"]
[Black "ural58"]
[Result "0-1"]
[WhiteElo "2335"]
[BlackElo "2560"]
[TimeControl "180+1"]
[EndTime "8:15:21 PDT"]
[Termination "ural58 won by resignation"]

1. d4 {[%clk 0:03:00.9]} 1... d5 {[%clk 0:02:59.1]} 2. Nf3 {[%clk 0:03:00.9]}
2... Nc6 {[%clk 0:02:58]} 3. c4 {[%clk 0:03:00.2]} 3... e5 {[%clk 0:02:57.1]} 4.
cxd5 {[%clk 0:02:56]} 4... Qxd5 {[%clk 0:02:56.3]} 5. Nc3 {[%clk 0:02:56]} 5...
Bb4 {[%clk 0:02:56.2]} 6. e3 {[%clk 0:02:56.3]} 6... exd4 {[%clk 0:02:55.5]} 7.
exd4 {[%clk 0:02:56]} 7... Bg4 {[%clk 0:02:55.2]} 8. Be2 {[%clk 0:02:54.7]} 8...
Bxf3 {[%clk 0:02:55.1]} 9. Bxf3 {[%clk 0:02:54.8]} 9... Qc4 {[%clk 0:02:55.4]}
10. Bxc6+ {[%clk 0:02:28.4]} 10... bxc6 {[%clk 0:02:52.7]} 11. Qe2+ {[%clk
0:02:22.9]} 11... Qxe2+ {[%clk 0:02:52.5]} 12. Kxe2 {[%clk 0:02:23.8]} 12... Kd7
{[%clk 0:02:52.5]} 13. Ne4 {[%clk 0:02:18.4]} 13... Ne7 {[%clk 0:02:46.2]} 14.
a3 {[%clk 0:02:10.3]} 14... Bd6 {[%clk 0:02:46]} 15. Be3 {[%clk 0:02:08.6]}
15... a5 {[%clk 0:02:38.9]} 16. Rac1 {[%clk 0:02:07.7]} 16... Rhb8 {[%clk
0:02:35.8]} 17. Rc2 {[%clk 0:02:06.5]} 17... h6 {[%clk 0:02:22.3]} 18. Rd1
{[%clk 0:02:00.8]} 18... f5 {[%clk 0:02:20.4]} 19. Nc3 {[%clk 0:01:51.9]} 19...
f4 {[%clk 0:02:18.1]} 20. Bc1 {[%clk 0:01:51.9]} 20... Nd5 {[%clk 0:02:13.1]}
21. Nxd5 {[%clk 0:01:46]} 21... cxd5 {[%clk 0:02:12.6]} 22. Rd3 {[%clk
0:01:45.2]} 22... Re8+ {[%clk 0:02:06.2]} 23. Kf3 {[%clk 0:01:45.2]} 23... g5
{[%clk 0:02:02]} 24. h4 {[%clk 0:01:43.7]} 24... Re4 {[%clk 0:01:59.1]} 25. hxg5
{[%clk 0:01:42.3]} 25... hxg5 {[%clk 0:01:59]} 26. Kg4 {[%clk 0:01:31.2]} 26...
f3+ {[%clk 0:01:52.4]} 27. Kh5 {[%clk 0:00:53.8]} 27... fxg2 {[%clk 0:01:50.9]}
28. Rd1 {[%clk 0:00:54]} 28... Rh8+ {[%clk 0:01:48.8]} 29. Kg6 {[%clk
0:00:49.8]} 29... Rh1 {[%clk 0:01:48.1]} 0-1

[Event "Early-Titled-Tuesday-Blitz-April-23-2024"]
[Site "Chess.com"]
[Date "2024.04.23"]
[Round "2"]
[White "Ginger_GM"]
[Black "dropstoneDP"]
[Result "1/2-1/2"]
[WhiteElo "2650"]
[BlackElo "3024"]
[TimeControl "180+1"]
[EndTime "8:15:24 PDT"]
[Termination "Game drawn by agreement"]

1. f4 {[%clk 0:03:00.9]} 1... d5 {[%clk 0:02:56.3]} 2. e3 {[%clk 0:03:00.6]}
2... g6 {[%clk 0:02:56.1]} 3. Nf3 {[%clk 0:03:00.3]} 3... Bg7 {[%clk 0:02:56.7]}
4. Be2 {[%clk 0:03:00.8]} 4... Nf6 {[%clk 0:02:56.8]} 5. O-O {[%clk 0:03:01.3]}
5... O-O {[%clk 0:02:57.3]} 6. d3 {[%clk 0:03:01.8]} 6... b6 {[%clk 0:02:56]} 7.
a4 {[%clk 0:02:59.3]} 7... Bb7 {[%clk 0:02:54.1]} 8. a5 {[%clk 0:02:58.7]} 8...
c5 {[%clk 0:02:54.6]} 9. Qe1 {[%clk 0:02:57.6]} 9... Re8 {[%clk 0:02:51.5]} 10.
Ne5 {[%clk 0:02:53.5]} 10... Nfd7 {[%clk 0:02:50.7]} 11. d4 {[%clk 0:02:47.9]}
11... bxa5 {[%clk 0:02:46.8]} 12. Qxa5 {[%clk 0:02:32.1]} 12... Qxa5 {[%clk
0:02:42.4]} 13. Rxa5 {[%clk 0:02:31.8]} 13... cxd4 {[%clk 0:02:35.7]} 14. exd4
{[%clk 0:02:30.8]} 14... Nxe5 {[%clk 0:02:11.4]} 15. fxe5 {[%clk 0:02:22.6]}
15... Nc6 {[%clk 0:02:10.6]} 16. Ra4 {[%clk 0:02:22.3]} 16... f6 {[%clk
0:02:09.6]} 17. exf6 {[%clk 0:01:43.7]} 17... Bxf6 {[%clk 0:02:10.5]} 18. c3
{[%clk 0:01:41.2]} 18... Kg7 {[%clk 0:02:11]} 19. Nd2 {[%clk 0:01:37.1]} 19...
e5 {[%clk 0:02:11.2]} 20. dxe5 {[%clk 0:01:36.5]} 20... Bxe5 {[%clk 0:02:06]}
21. Ba6 {[%clk 0:01:31.5]} 21... Rab8 {[%clk 0:01:58.2]} 22. Nf3 {[%clk
0:01:29.7]} 22... Bf6 {[%clk 0:01:52.5]} 23. Bf4 {[%clk 0:01:29]} 23... Bxa6
{[%clk 0:01:53.1]} 24. Rxa6 {[%clk 0:01:27.6]} 24... Rb6 {[%clk 0:01:53.8]} 25.
Rxb6 {[%clk 0:01:20.4]} 25... axb6 {[%clk 0:01:54.7]} 26. Rd1 {[%clk 0:01:17.9]}
26... d4 {[%clk 0:01:54]} 27. cxd4 {[%clk 0:01:07.6]} 27... Re4 {[%clk
0:01:53.9]} 28. Be5 {[%clk 0:01:05.6]} 28... Nxe5 {[%clk 0:01:53.9]} 29. dxe5
{[%clk 0:01:05.4]} 29... Bxe5 {[%clk 0:01:54.3]} 30. Rd7+ {[%clk 0:01:02]} 30...
Kg8 {[%clk 0:01:43.2]} 31. Rb7 {[%clk 0:00:53.7]} 31... Bxb2 {[%clk 0:01:39.9]}
32. Rxb6 {[%clk 0:00:53.2]} 32... Bd4+ {[%clk 0:01:40.5]} 33. Nxd4 {[%clk
0:00:52.7]} 33... Rxd4 {[%clk 0:01:41.4]} 1/2-1/2

[Event "Early-Titled-Tuesday-Blitz-April-23-2024"]
[Site "Chess.com"]
[Date "2024.04.23"]
[Round "2"]
[White "MVM2008"]
[Black "NovakCabarkapa"]
[Result "0-1"]
[WhiteElo "2492"]
[BlackElo "2781"]
[TimeControl "180+1"]
[EndTime "8:15:25 PDT"]
[Termination "NovakCabarkapa won by resignation"]

1. e4 {[%clk 0:03:00.9]} 1... e6 {[%clk 0:02:58.6]} 2. d4 {[%clk 0:03:00.6]}
2... d5 {[%clk 0:02:59.3]} 3. Nd2 {[%clk 0:03:01.1]} 3... c5 {[%clk 0:02:59.1]}
4. c3 {[%clk 0:03:01.1]} 4... cxd4 {[%clk 0:02:59]} 5. cxd4 {[%clk 0:03:02]}
5... dxe4 {[%clk 0:02:59.5]} 6. Nxe4 {[%clk 0:03:02.9]} 6... Nf6 {[%clk
0:03:00]} 7. Nc3 {[%clk 0:03:03.2]} 7... Nc6 {[%clk 0:03:00.1]} 8. Nf3 {[%clk
0:03:03.7]} 8... h6 {[%clk 0:02:57.7]} 9. Bd3 {[%clk 0:03:02.6]} 9... Bd6 {[%clk
0:02:57]} 10. a3 {[%clk 0:03:00.6]} 10... O-O {[%clk 0:02:57.1]} 11. g4 {[%clk
0:02:42.8]} 11... e5 {[%clk 0:02:44.4]} 12. d5 {[%clk 0:02:42.4]} 12... Nd4
{[%clk 0:02:42.6]} 13. g5 {[%clk 0:01:41.9]} 13... Bg4 {[%clk 0:02:41.3]} 14.
Nxd4 {[%clk 0:01:36.6]} 14... Bxd1 {[%clk 0:02:38.3]} 15. Nf5 {[%clk 0:01:36.6]}
15... e4 {[%clk 0:02:02.9]} 16. gxf6 {[%clk 0:00:54.2]} 16... exd3 {[%clk
0:01:50.6]} 17. Rg1 {[%clk 0:00:53.4]} 17... Qxf6 {[%clk 0:01:42.3]} 18. Nxg7
{[%clk 0:00:20.4]} 18... Kh7 {[%clk 0:01:42.4]} 19. Nh5 {[%clk 0:00:18.2]} 0-1

[Event "Early-Titled-Tuesday-Blitz-April-23-2024"]
[Site "Chess.com"]
[Date "2024.04.23"]
[Round "2"]
[White "Binary010"]
[Black "thesupera12"]
[Result "1-0"]
[WhiteElo "2860"]
[BlackElo "2436"]
[TimeControl "180+1"]
[EndTime "8:15:28 PDT"]
[Termination "Binary010 won by resignation"]

1. e4 {[%clk 0:03:00.9]} 1... c5 {[%clk 0:02:50.4]} 2. Nf3 {[%clk 0:02:59.8]}
2... d6 {[%clk 0:02:50]} 3. d4 {[%clk 0:02:58.7]} 3... cxd4 {[%clk 0:02:50.9]}
4. Nxd4 {[%clk 0:02:59.2]} 4... Nf6 {[%clk 0:02:51.5]} 5. Nc3 {[%clk 0:02:59.5]}
5... g6 {[%clk 0:02:51.7]} 6. Be3 {[%clk 0:02:58.4]} 6... Bg7 {[%clk 0:02:52]}
7. f3 {[%clk 0:02:59]} 7... O-O {[%clk 0:02:52.9]} 8. Qd2 {[%clk 0:02:59.3]}
8... Nc6 {[%clk 0:02:53.5]} 9. O-O-O {[%clk 0:02:59.5]} 9... Bd7 {[%clk
0:02:53.4]} 10. h4 {[%clk 0:02:50.4]} 10... h5 {[%clk 0:02:50.8]} 11. Kb1 {[%clk
0:02:50]} 11... Rc8 {[%clk 0:02:50.2]} 12. g4 {[%clk 0:02:34.1]} 12... Ne5
{[%clk 0:02:44.8]} 13. gxh5 {[%clk 0:02:14.5]} 13... Nxh5 {[%clk 0:02:43.9]} 14.
Rg1 {[%clk 0:02:14.8]} 14... Nc4 {[%clk 0:02:41]} 15. Bxc4 {[%clk 0:02:14]}
15... Rxc4 {[%clk 0:02:41.9]} 16. Nce2 {[%clk 0:01:28.7]} 16... Qc7 {[%clk
0:02:32.2]} 17. Bh6 {[%clk 0:01:20.7]} 17... Rc8 {[%clk 0:02:26.2]} 18. Bxg7
{[%clk 0:01:18.3]} 18... Nxg7 {[%clk 0:02:25.8]} 19. Nf4 {[%clk 0:01:08.6]}
19... Rxd4 {[%clk 0:02:17.7]} 20. Qxd4 {[%clk 0:01:08.7]} 20... e5 {[%clk
0:02:10.6]} 21. Qxd6 {[%clk 0:01:04.4]} 21... exf4 {[%clk 0:02:04.4]} 22. Qxd7
{[%clk 0:01:01.8]} 22... Qxc2+ {[%clk 0:02:01.6]} 23. Ka1 {[%clk 0:01:02.1]}
23... Nh5 {[%clk 0:01:53.6]} 24. a3 {[%clk 0:00:54.7]} 24... Rc3 {[%clk
0:01:38.9]} 25. Qe8+ {[%clk 0:00:48.3]} 25... Kh7 {[%clk 0:01:34.2]} 26. Qxf7+
{[%clk 0:00:47.5]} 26... Kh8 {[%clk 0:01:34.7]} 27. Qf8+ {[%clk 0:00:43.1]}
27... Kh7 {[%clk 0:01:34.5]} 28. Rd7+ {[%clk 0:00:43.1]} 1-0

[Event "Early-Titled-Tuesday-Blitz-April-23-2024"]
[Site "Chess.com"]
[Date "2024.04.23"]
[Round "2"]
[White "profedechess93"]
[Black "Oleksandr_Bortnyk"]
[Result "0-1"]
[WhiteElo "2668"]
[BlackElo "3108"]
[TimeControl "180+1"]
[EndTime "8:15:30 PDT"]
[Termination "Oleksandr_Bortnyk won by resignation"]

1. e4 {[%clk 0:03:00.9]} 1... Nf6 {[%clk 0:02:57.6]} 2. e5 {[%clk 0:03:01]} 2...
Nd5 {[%clk 0:02:58]} 3. d4 {[%clk 0:03:01.7]} 3... d6 {[%clk 0:02:58.6]} 4. Nf3
{[%clk 0:03:02.2]} 4... dxe5 {[%clk 0:02:59.3]} 5. Nxe5 {[%clk 0:03:02.3]} 5...
c6 {[%clk 0:02:59.9]} 6. Qf3 {[%clk 0:03:01]} 6... Be6 {[%clk 0:02:59.5]} 7. a3
{[%clk 0:02:59.9]} 7... Nd7 {[%clk 0:02:58.6]} 8. Nd3 {[%clk 0:02:45.2]} 8... g6
{[%clk 0:02:55.1]} 9. c3 {[%clk 0:02:37.8]} 9... Bg7 {[%clk 0:02:54.3]} 10. Nd2
{[%clk 0:02:36]} 10... O-O {[%clk 0:02:53.1]} 11. Ne4 {[%clk 0:02:33.7]} 11...
Bf5 {[%clk 0:02:51.4]} 12. Bg5 {[%clk 0:02:21.6]} 12... Qa5 {[%clk 0:02:46]} 13.
Bd2 {[%clk 0:01:54.9]} 13... e5 {[%clk 0:02:44.3]} 14. c4 {[%clk 0:01:24.7]}
14... Qb6 {[%clk 0:02:44.2]} 15. cxd5 {[%clk 0:01:18.5]} 15... cxd5 {[%clk
0:02:44.4]} 16. Nc3 {[%clk 0:01:04]} 16... e4 {[%clk 0:02:44.4]} 17. Nxd5 {[%clk
0:01:03.4]} 17... Qd6 {[%clk 0:02:27.3]} 18. Qf4 {[%clk 0:00:57.2]} 18... Qxd5
{[%clk 0:02:27.1]} 19. Nb4 {[%clk 0:00:57.1]} 19... Qb3 {[%clk 0:02:22.6]} 20.
Bb5 {[%clk 0:00:49.8]} 20... a5 {[%clk 0:02:18]} 21. Bxd7 {[%clk 0:00:46.9]}
21... Bxd7 {[%clk 0:02:18.9]} 22. Na2 {[%clk 0:00:43.1]} 22... Bb5 {[%clk
0:02:18.7]} 23. Nc3 {[%clk 0:00:37.5]} 23... Bd3 {[%clk 0:02:17.9]} 24. h4
{[%clk 0:00:34.6]} 24... Qxb2 {[%clk 0:02:06.3]} 25. Rc1 {[%clk 0:00:34.3]}
25... Rac8 {[%clk 0:02:05.1]} 26. h5 {[%clk 0:00:32.7]} 26... Bxd4 {[%clk
0:01:56.8]} 27. hxg6 {[%clk 0:00:32.9]} 27... fxg6 {[%clk 0:01:57.2]} 28. Qh6
{[%clk 0:00:25]} 28... Bxf2+ {[%clk 0:01:57.4]} 29. Kd1 {[%clk 0:00:25.4]} 29...
Qb3+ {[%clk 0:01:58.3]} 0-1